[Event "7th Sharjah Masters 2024"]
[Site "Sharjah"]
[Date "2024.05.20"]
[Round "7.35"]
[White "Gupta, Abhijeet"]
[Black "Pranav Anand"]
[Result "0-1"]
[ECO "A17"]
[WhiteElo "2604"]
[BlackElo "2532"]
[Annotator "TA"]
[PlyCount "123"]
[EventDate "2024.05.13"]
[EventType "swiss"]
[EventCountry "UAE"]
[SourceTitle "playchess.com"]
[Source "ChessBase"]
[SourceQuality "1"]
[TimeControl "5400+30"]

{[%evp 44,123,-143,-145,-131,-186,-133,-184,-79,-109,-97,-104,-82,-80,-50,-49,-41,-71,-4,-36,0,-20,0,0,0,-6,0,-94,-96,-114,-125,-120,-110,-115,-126,-115,-121,-147,-143,-156,-95,-96,-91,-93,-96,-85,-87,-138,-128,-126,-135,-155,-156,-186,-158,-185,-174,-181,-141,-170,-157,-205,-97,-101,-100,-199,-199,-29936,-12850,-29942,-29941,-29946,-29942,-29945,-29946,-29949,-29950,-29954,-29957,-29964,-29964,-5122]} 1. Nf3 {[%emt 0:00:04]} Nf6 {[%emt 0:00:11]} 2. c4 {[%emt 0:00:06]} e6 {[%emt 0:00:05]} 3. Nc3 {[%emt 0:00:18]} d5 {[%emt 0:00:07]} 4. e3 {[%emt 0:00:23]} Bd6 {[%emt 0:01:26]} 5. b3 {[%emt 0:00:27]} O-O {[%emt 0:00:58]} 6. Bb2 {[%emt 0:00:12] A17: English Opening: 1...Nf6 with ...Bb4.} Nc6 {[%emt 0:00:05]} 7. Be2 {[%emt 0:02:17]} dxc4 {[%emt 0:03:07]} 8. bxc4 {[%emt 0:00:52]} e5 {[%emt 0:00:05]} 9. Qc2 $146 {[%emt 0:01:40]} ({Predecessor:} 9. d3 Bf5 10. O-O Re8 11. Nd5 Nd7 12. h3 e4 13. dxe4 Bxe4 14. Nd2 Bf5 15. Nb3 {½-½ Nanu,C (2523)-Petkov,M (2496) ROM GP KO final 2023 (1.2)}) 9... Re8 {[%emt 0:02:34]} 10. Ng5 {[%emt 0:03:05]} h6 {[%emt 0:12:39]} 11. h4 {[%emt 0:01:54]} Nd4 {[%emt 0:08:28]} 12. exd4 {[%emt 0:09:09]} exd4 {[%emt 0:00:38]} 13. Nb5 {[%emt 0:01:56]} Bc5 {[%emt 0:09:54]} 14. Kf1 {[%emt 0:08:39]} a6 {[%emt 0:04:50]} 15. Bd3 {[%emt 0:02:23]} axb5 {[%emt 0:07:38]} 16. cxb5 {[%emt 0:00:04]} b6 {[%emt 0:00:02]} 17. Ne4 {[%emt 0:03:25]} Nxe4 {[%emt 0:04:20]} 18. Bxe4 {[%emt 0:00:03]} Ra7 {[%emt 0:00:46]} 19. a4 {[%emt 0:01:17]} Qd6 {[%emt 0:01:44]} 20. Re1 {[%emt 0:08:32]} Bd7 {[%emt 0:01:09]} 21. Bh7+ {[%emt 0:09:26]} Kf8 {[%emt 0:00:31]} 22. Rxe8+ {[%emt 0:00:05]} Bxe8 {[%emt 0:00:38]} 23. Bd3 {[%emt 0:01:16]} c6 {[%emt 0:06:29]} 24. Rh3 {[%emt 0:01:09]} (24. g3 $17 {keeps fighting.}) 24... cxb5 {[%emt 0:00:42]} (24... Re7 $19 25. Bc4 Kg8) 25. axb5 {[%emt 0:01:07]} (25. Bxb5 $17 Bxb5+ 26. axb5) 25... Ra5 {[%emt 0:12:33]} (25... Bd7 $19 {has better winning chances.} 26. Rg3 Qf4) 26. Qb3 {[%emt 0:08:43]} Qf4 {[%emt 0:00:32]} 27. Bc4 {[%emt 0:03:08]} Qxd2 {[%emt 0:05:18]} (27... d3 {is more complex.} 28. Rf3 Qxd2 29. Bxd3 Ra2) 28. Rd3 {[%emt 0:05:32]} Qf4 {[%emt 0:00:30]} 29. Rf3 {[%emt 0:02:15]} Qc7 $1 {[%emt 0:00:02]} (29... Qxh4 $2 {perishes.} 30. Bxf7 Ra7 (30... Bxb5+ $2 {loses.} 31. Bc4+ Ke7 32. Bxb5 $18) (30... Qh1+ $2 31. Ke2 $18) 31. Bxe8+ Kxe8 32. Qg8+ Kd7 33. Qxg7+ Be7 34. Qg6 $18 (34. Bxd4 Qh1+ 35. Ke2 Qh5 $16) (34. Qxd4+ Qxd4 35. Bxd4 Ke6 $18)) 30. g3 {[%emt 0:00:12]} Ra8 {[%emt 0:02:42]} ({Black should play} 30... Qd7 $17 {With the idea ...f6.} 31. Rf4 f6) 31. Rf4 {[%emt 0:02:25]} Rd8 {[%emt 0:00:53]} 32. Kg1 {[%emt 0:00:54]} Kg8 {[%emt 0:00:40]} 33. h5 {[%emt 0:01:18]} Qe7 {[%emt 0:01:10]} 34. Qd3 {[%emt 0:01:05]} Rd6 {[%emt 0:02:33]} 35. Bb3 {[%emt 0:08:01]} (35. Kg2 $11) 35... Rf6 $1 $17 {[%emt 0:02:54]} 36. Re4 {[%emt 0:12:53]} Bxb5 $1 {[%emt 0:09:37]} 37. Rxe7 {[%emt 0:00:41]} Bxd3 {[%emt 0:00:00]} 38. Rd7 {[%emt 0:01:27]} Kf8 {[%emt 0:00:00]} 39. Bxd4 {[%emt 0:00:07]} Bxd4 {[%emt 0:00:00]} 40. Rxd4 {[%emt 0:00:03]} Be2 {[%emt 0:00:00]} 41. g4 {[%emt 0:00:18]} Bf3 {[%emt 0:00:00]} ({Better is} 41... g5 {Strongly threatening ...Rf4.} 42. hxg6 Rxg6) 42. Kh2 $17 {[%emt 0:00:28]} Ke7 {[%emt 0:00:00]} 43. Kg3 {[%emt 0:00:45]} b5 {[%emt 0:00:01]} 44. Rd3 {[%emt 0:01:10]} Bc6 {[%emt 0:00:23]} 45. f4 {[%emt 0:00:05] [#]} (45. Re3+ $142 Kf8 46. f3) 45... Be8 $1 $17 {[%emt 0:00:26]} 46. Re3+ {[%emt 0:00:29]} Kf8 {[%emt 0:00:06]} 47. g5 {[%emt 0:00:47]} Ra6 {[%emt 0:00:12]} 48. Bd5 {[%emt 0:01:10]} Rd6 {[%emt 0:00:23]} 49. Bb3 {[%emt 0:00:06]} Bd7 {[%emt 0:00:05]} 50. Kf3 {[%emt 0:00:28]} Be6 {[%emt 0:00:46]} 51. Bxe6 {[%emt 0:01:04]} Rxe6 {[%emt 0:00:06]} 52. Ra3 {[%emt 0:00:30] [#]} (52. Rb3 $17 {might work better.}) 52... Re8 {[%emt 0:01:30]} (52... b4 $1 $19 {[%cal Rb4a3] is more deadly.} 53. Rb3 Rb6) 53. Ra6 {[%emt 0:00:30]} Rb8 {[%emt 0:00:58]} 54. gxh6 {[%emt 0:00:23]} (54. Ke3 $17 {was called for.}) 54... gxh6 $19 {[%emt 0:00:01]} 55. Rxh6 $2 {[%emt 0:00:16]} (55. Ke2 $19) 55... Kg7 {[%emt 0:00:01]} 56. Rd6 {[%emt 0:00:46]} b4 {[%emt 0:00:01]} 57. Rd2 {[%emt 0:00:39]} b3 {[%emt 0:00:08]} 58. Rb2 {[%emt 0:00:16]} Kh6 {[%emt 0:00:09]} 59. Ke4 {[%emt 0:00:20]} Rb5 {[%emt 0:00:12]} 60. Kd4 {[%emt 0:00:56]} Kxh5 {[%emt 0:00:19]} (60... Rxh5 61. Rxb3 Ra5 62. Ke4 $11) 61. Kc4 {[%emt 0:00:25]} Rb7 {[%emt 0:00:05]} 62. Kd4 {[%emt 0:01:06]} 0-1

[Event "7th Sharjah Masters 2024"]
[Site "Sharjah"]
[Date "2024.05.20"]
[Round "7.36"]
[White "Krzyzanowski, Marcin"]
[Black "Jumabayev, Rinat"]
[Result "0-1"]
[ECO "B40"]
[WhiteElo "2526"]
[BlackElo "2597"]
[Annotator "ChessBase"]
[PlyCount "242"]
[EventDate "2024.05.13"]
[EventType "swiss"]
[EventCountry "UAE"]
[SourceTitle "playchess.com"]
[Source "ChessBase"]
[SourceQuality "1"]
[TimeControl "5400+30"]

1. e4 {[%emt 0:00:03]} c5 {[%emt 0:00:12]} 2. c3 {[%emt 0:00:05]} e6 {[%emt 0:02:41]} 3. Nf3 {[%emt 0:00:24]} d5 {[%emt 0:00:37]} 4. exd5 {[%emt 1:31:58]} exd5 {[%emt 0:00:41]} 5. Bb5+ {[%emt 0:00:28]} Nc6 {[%emt 0:03:37]} 6. Qe2+ {[%emt 0:01:41]} Qe7 {[%emt 0:16:26]} 7. d4 {[%emt 0:09:36]} Qxe2+ {[%emt 0:03:59]} 8. Kxe2 {[%emt 0:06:13]} Bd7 {[%emt 0:11:34]} 9. Re1 {[%emt 0:06:53]} O-O-O {[%emt 0:01:52]} 10. Kf1 {[%emt 0:01:51]} cxd4 {[%emt 0:07:07]} 11. Nxd4 {[%emt 0:08:54]} Nxd4 {[%emt 0:01:06]} 12. Bxd7+ {[%emt 0:00:05]} Kxd7 {[%emt 0:00:06]} 13. cxd4 {[%emt 0:00:04]} Bd6 {[%emt 0:47:02]} 14. Nc3 {[%emt 0:04:07]} Ne7 {[%emt 0:00:33]} 15. a3 {[%emt 0:07:02]} Rc8 {[%emt 0:01:12]} 16. Re3 {[%emt 0:05:36]} f6 {[%emt 0:04:07]} 17. Rf3 {[%emt 0:01:55]} Bc7 {[%emt 0:03:36]} 18. Na4 {[%emt 0:01:39]} Bd6 {[%emt 0:03:35]} 19. Nc3 {[%emt 0:00:59]} Ke6 {[%emt 0:11:29]} 20. Bf4 {[%emt 0:02:34]} Bxf4 {[%emt 0:00:11]} 21. Rxf4 {[%emt 0:40:26]} Rhd8 {[%emt 0:00:11]} 22. Rf3 {[%emt 0:03:55]} Kf7 {[%emt 0:01:02]} 23. Ne2 {[%emt 0:05:44]} Rc2 {[%emt 0:00:53]} 24. Rb3 {[%emt 0:00:33]} Rd7 {[%emt 0:04:18]} 25. Rc1 {[%emt 0:06:07]} Rxc1+ {[%emt 0:00:33]} 26. Nxc1 {[%emt 0:00:01]} Nf5 {[%emt 0:03:31]} 27. Ne2 {[%emt 0:02:12]} Nd6 {[%emt 0:00:40]} 28. Rc3 {[%emt 0:01:22]} Nc4 {[%emt 0:00:59]} 29. Rc2 {[%emt 0:00:02]} Ke6 {[%emt 0:02:53]} 30. Ke1 {[%emt 0:04:23]} Kd6 {[%emt 0:00:38]} 31. Kd1 {[%emt 0:00:53]} a6 {[%emt 0:02:48]} 32. a4 {[%emt 0:01:25]} Re7 {[%emt 0:01:18]} 33. b3 {[%emt 0:19:45]} Na5 {[%emt 0:00:08]} 34. Rc3 {[%emt 0:00:03]} Nc6 {[%emt 0:01:41]} 35. Kd2 {[%emt 0:03:01]} Re4 {[%emt 0:00:26]} 36. Re3 {[%emt 0:01:36]} Rh4 {[%emt 0:02:19]} 37. Rh3 {[%emt 0:06:55]} Rxh3 {[%emt 0:01:08]} 38. gxh3 {[%emt 0:00:01]} Ke6 {[%emt 0:00:30]} 39. Ke3 {[%emt 0:01:08]} Kf5 {[%emt 0:08:59]} 40. Nc3 {[%emt 0:00:40]} Nb4 {[%emt 0:00:07]} 41. Kf3 {[%emt 0:01:04]} Nc2 {[%emt 0:01:47]} 42. Ne2 {[%emt 0:03:23]} a5 {[%emt 0:01:13]} 43. h4 {[%emt 0:02:30]} Ne1+ {[%emt 0:00:35]} 44. Kg3 {[%emt 0:00:05]} Ke4 {[%emt 0:01:15]} 45. h5 {[%emt 0:00:46]} Nc2 {[%emt 0:03:24]} 46. f3+ {[%emt 0:00:54]} Kf5 {[%emt 0:03:56]} 47. h4 {[%emt 0:00:32]} b6 {[%emt 0:01:23]} 48. Kf2 {[%emt 0:00:45]} Ke6 {[%emt 0:00:31]} 49. Kg3 {[%emt 0:00:25]} Ne3 {[%emt 0:00:06]} 50. Kf4 {[%emt 0:00:31]} Nf1 {[%emt 0:01:33]} 51. Nc1 {[%emt 0:00:31]} Kd6 {[%emt 0:00:39]} 52. Nd3 {[%emt 0:00:17]} Nd2 {[%emt 0:00:27]} 53. b4 {[%emt 0:00:41]} axb4 {[%emt 0:00:20]} 54. Nxb4 {[%emt 0:00:02]} Nc4 {[%emt 0:00:33]} 55. Kf5 {[%emt 0:00:36]} Nd2 {[%emt 0:00:26]} 56. Kf4 {[%emt 0:00:36]} Ke6 {[%emt 0:00:31]} 57. Na6 {[%emt 0:00:17]} Kd7 {[%emt 0:00:44]} 58. Nb4 {[%emt 0:00:22]} Kd6 {[%emt 0:00:00]} 59. Nd3 {[%emt 0:01:00]} Ke6 {[%emt 0:00:53]} 60. Kg4 {[%emt 0:00:13]} Nb3 {[%emt 0:00:29]} 61. Nf4+ {[%emt 0:00:05]} Kd6 {[%emt 0:00:15]} 62. h6 {[%emt 0:02:08]} gxh6 {[%emt 0:00:37]} 63. Ne2 {[%emt 0:00:03]} Nd2 {[%emt 0:00:05]} 64. f4 {[%emt 0:01:09]} Ke6 {[%emt 0:01:22]} 65. f5+ {[%emt 0:00:23]} Kd6 {[%emt 0:00:23]} 66. Kh5 {[%emt 0:00:58]} Nf3 {[%emt 0:00:04]} 67. Kg4 {[%emt 0:00:08]} Ne1 {[%emt 0:00:59]} 68. Nc3 {[%emt 0:00:45]} Ng2 {[%emt 0:00:20]} 69. Nd1 {[%emt 0:00:34]} Kc6 {[%emt 0:00:42]} 70. Nc3 {[%emt 0:00:38]} h5+ {[%emt 0:00:26]} 71. Kxh5 {[%emt 0:00:24]} Ne3 {[%emt 0:00:01]} 72. Ne2 {[%emt 0:00:37]} Nxf5 {[%emt 0:00:15]} 73. Kg4 {[%emt 0:00:14]} Ng7 {[%emt 0:00:30]} 74. h5 {[%emt 0:00:35]} Kd6 {[%emt 0:01:13]} 75. h6 {[%emt 0:00:34]} Ne6 {[%emt 0:00:01]} 76. Kf5 {[%emt 0:00:07]} Ke7 {[%emt 0:00:08]} 77. Kg4 {[%emt 0:00:02]} Kf7 {[%emt 0:01:28]} 78. Nc3 {[%emt 0:00:20]} Nc7 {[%emt 0:00:08]} 79. Kf5 {[%emt 0:02:09]} Ke7 {[%emt 0:00:04]} 80. Kg4 {[%emt 0:00:21]} Ke6 {[%emt 0:00:13]} 81. Ne2 {[%emt 0:00:08]} Kf7 {[%emt 0:01:35]} 82. Nf4 {[%emt 0:00:35]} b5 {[%emt 0:00:28]} 83. axb5 {[%emt 0:00:53]} Nxb5 {[%emt 0:00:01]} 84. Nxd5 {[%emt 0:00:46]} Nxd4 {[%emt 0:00:01]} 85. Nf4 {[%emt 0:00:51]} Ne6 {[%emt 0:00:29]} 86. Nd5 {[%emt 0:00:20]} Kg6 {[%emt 0:00:07]} 87. Ne7+ {[%emt 0:00:14]} Kf7 {[%emt 0:00:27]} 88. Nc6 {[%emt 0:00:51]} Nc7 {[%emt 0:00:59]} 89. Kf5 {[%emt 0:00:16]} Nd5 {[%emt 0:00:02]} 90. Nd8+ {[%emt 0:00:14]} Ke8 {[%emt 0:01:12]} 91. Nc6 {[%emt 0:01:33]} Kd7 {[%emt 0:00:05]} 92. Nd4 {[%emt 0:00:36]} Kd6 {[%emt 0:02:12]} 93. Nb5+ {[%emt 0:01:09]} Ke7 {[%emt 0:00:10]} 94. Ke4 {[%emt 0:01:22]} Nb6 {[%emt 0:00:31]} 95. Kf4 {[%emt 0:01:14]} Kf7 {[%emt 0:02:45]} 96. Kf5 {[%emt 0:00:30]} Nc8 {[%emt 0:00:12]} 97. Nd4 {[%emt 0:00:31]} Ne7+ {[%emt 0:00:10]} 98. Kg4 {[%emt 0:01:01]} Kg6 {[%emt 0:00:04]} 99. Ne6 {[%emt 0:00:16]} Kxh6 {[%emt 0:00:09]} 100. Nf4 {[%emt 0:00:08]} f5+ {[%emt 0:00:37]} 101. Kg3 {[%emt 0:00:05]} Kg5 {[%emt 0:00:17]} 102. Nh3+ {[%emt 0:00:02]} Kg6 {[%emt 0:00:58]} 103. Kh4 {[%emt 0:00:19]} Kh6 {[%emt 0:00:16]} 104. Ng1 {[%emt 0:00:11]} Ng6+ {[%emt 0:00:08]} 105. Kg3 {[%emt 0:00:12]} Kg5 {[%emt 0:03:06]} 106. Nf3+ {[%emt 0:00:31]} Kf6 {[%emt 0:00:05]} 107. Nd4 {[%emt 0:00:02]} h6 {[%emt 0:01:46]} 108. Nf3 {[%emt 0:00:23]} Ke6 {[%emt 0:00:27]} 109. Nd4+ {[%emt 0:00:20]} Ke5 {[%emt 0:00:09]} 110. Nb3 {[%emt 0:01:38]} Ke4 {[%emt 0:00:32]} 111. Nc5+ {[%emt 0:00:08]} Ke3 {[%emt 0:00:25]} 112. Ne6 {[%emt 0:01:19]} f4+ {[%emt 0:00:12]} 113. Kg2 {[%emt 0:00:03]} f3+ {[%emt 0:00:29]} 114. Kf1 {[%emt 0:00:06]} Ne5 {[%emt 0:00:18]} 115. Ng7 {[%emt 0:00:10]} Ng4 {[%emt 0:00:49]} 116. Nf5+ {[%emt 0:00:10]} Kf4 {[%emt 0:00:04]} 117. Ng7 {[%emt 0:00:38]} Ke4 {[%emt 0:02:18]} 118. Nh5 {[%emt 0:01:24]} Ke3 {[%emt 0:00:23]} 119. Ng3 {[%emt 0:00:05]} h5 {[%emt 0:01:10]} 120. Nf5+ {[%emt 0:00:40]} Kf4 {[%emt 0:00:01]} 121. Nh4 {[%emt 0:01:03]} Ne5 {[%emt 0:00:13]} 0-1

[Event "7th Sharjah Masters 2024"]
[Site "Sharjah"]
[Date "2024.05.20"]
[Round "7.37"]
[White "Vakhidov, Jakhongir"]
[Black "Raja Rithvik R"]
[Result "1/2-1/2"]
[ECO "D44"]
[WhiteElo "2599"]
[BlackElo "2524"]
[Annotator "TA"]
[PlyCount "25"]
[EventDate "2024.05.13"]
[EventType "swiss"]
[EventCountry "UAE"]
[SourceTitle "playchess.com"]
[Source "ChessBase"]
[SourceQuality "1"]
[TimeControl "5400+30"]

{[%evp 14,25,12,10,21,8,19,0,0,0,0,0,2,17]} 1. c4 {[%emt 1:31:00]} c6 {[%emt 0:01:09]} 2. d4 {[%emt 0:00:00]} d5 {[%emt 0:00:08]} 3. Nf3 {[%emt 0:00:00]} Nf6 {[%emt 0:00:08]} 4. Nc3 {[%emt 0:00:00]} e6 {[%emt 0:00:05]} 5. Bg5 {[%emt 0:00:00]} dxc4 {[%emt 0:00:11]} 6. a4 {[%emt 0:00:00]} Bb4 {[%emt 0:01:40]} 7. e4 {[%emt 0:00:00][%cal Be2e4,Be4e5][%mdl 32]} Bxc3+ {[%emt 0:08:31]} 8. bxc3 {[%emt 0:00:00] White wants to play e5. The position is equal.} Qa5 {[%emt 0:00:02]} 9. e5 $1 {[%emt 0:00:00]} ({Of course not} 9. Bxc4 Qxc3+ 10. Nd2 Nxe4 $17) 9... Ne4 {[%emt 0:00:19]} 10. Rc1 {[%emt 0:00:00][%cal Of3d2]} b5 {[%emt 0:10:37]} (10... Nxc3 $2 {too greedy.} 11. Qd2 $18) 11. Qc2 {[%emt 0:00:00]} Nxg5 {[%emt 0:03:32]} 12. Nxg5 {[%emt 0:00:00] axb5 is the strong threat.} Qxa4 {[%emt 0:03:15]} 13. Qxa4 {[%emt 0:00:00] A rather calm draw.   Weighted Error Value: White=0.00 (flawless) /Black=0.00 (flawless) .  OK:         	White=2     	Black=2      Strong:       	White=1     	---} 1/2-1/2

[Event "7th Sharjah Masters 2024"]
[Site "Sharjah"]
[Date "2024.05.20"]
[Round "7.38"]
[White "Kacharava, Nikolozi"]
[Black "Sethuraman, S.P."]
[Result "0-1"]
[ECO "B90"]
[WhiteElo "2527"]
[BlackElo "2593"]
[Annotator "RC"]
[PlyCount "84"]
[EventDate "2024.05.13"]
[EventType "swiss"]
[EventCountry "UAE"]
[SourceTitle "playchess.com"]
[Source "ChessBase"]
[SourceQuality "1"]
[TimeControl "5400+30"]

1. e4 {[%emt 0:00:08]} c5 {[%emt 0:03:15]} 2. Nf3 {[%emt 0:00:23]} d6 {[%emt 0:00:08]} 3. d4 {[%emt 0:00:27]} cxd4 {[%emt 0:00:08]} 4. Nxd4 {[%emt 0:00:38]} Nf6 {[%emt 0:00:06]} 5. Nc3 {[%emt 0:00:22]} a6 {[%emt 0:00:06]} 6. h3 {[%emt 0:01:04]} e5 {[%emt 0:00:53]} 7. Nf3 {[%emt 0:00:43]} Be7 {[%emt 0:01:52]} 8. g4 {[%emt 0:00:55]} Be6 {[%emt 0:05:23]} 9. g5 {[%emt 0:00:59]} Nfd7 {[%emt 0:03:01]} 10. Be3 {[%emt 0:01:05]} Nb6 {[%emt 0:00:06]} 11. h4 {[%emt 0:01:39]} N8d7 {[%emt 0:00:57]} 12. Qd2 {[%emt 0:01:12]} Rc8 {[%emt 0:04:16]} 13. h5 {[%emt 0:01:17]} Nc5 {[%emt 0:02:34]} 14. h6 {[%emt 0:09:27]} g6 {[%emt 0:00:32]} 15. b3 {[%emt 0:01:09]} Qc7 {[%emt 0:06:50]} 16. Ng1 {[%emt 0:07:54]} Ncd7 {[%emt 0:13:57]} 17. Nge2 {[%emt 0:02:51]} f6 {[%emt 0:04:40]} 18. a4 {[%emt 0:08:44]} fxg5 {[%emt 0:08:57]} 19. Bxg5 {[%emt 0:10:28]} Bxg5 {[%emt 0:03:42]} 20. Qxg5 {[%emt 0:00:07]} Qc5 {[%emt 0:04:02]} 21. a5 {[%emt 0:17:02]} Na8 {[%emt 0:00:50]} 22. Bh3 {[%emt 0:03:19]} Nc7 {[%emt 0:02:20]} 23. Rd1 {[%emt 0:18:55]} Rf8 {[%emt 0:14:19]} 24. Qh4 {[%emt 0:01:57]} Nf6 {[%emt 0:03:39]} 25. Rd3 {[%emt 0:01:21]} Bxh3 {[%emt 0:01:09]} 26. Rhxh3 {[%emt 0:02:06]} Ne6 {[%emt 0:00:31]} 27. Rhf3 {[%emt 0:01:17]} g5 {[%emt 0:00:15]} 28. Qg3 {[%emt 0:00:23]} Rc7 {[%emt 0:06:13]} 29. Rf5 {[%emt 0:02:55]} Rcf7 {[%emt 0:00:14]} 30. Qh3 {[%emt 0:02:21]} Rg8 {[%emt 0:06:14]} 31. Kd1 {[%emt 0:01:07]} Nf4 {[%emt 0:00:57]} 32. Rxf4 {[%emt 0:01:02]} gxf4 {[%emt 0:00:26]} 33. Na4 {[%emt 0:01:43]} Ng4 {[%emt 0:01:42]} 34. Kc1 {[%emt 0:00:00]} Qxf2 {[%emt 0:00:51]} 35. Rc3 {[%emt 0:00:19]} Rg5 {[%emt 0:01:55]} 36. Rc8+ {[%emt 0:00:20]} Ke7 {[%emt 0:00:35]} 37. Nec3 {[%emt 0:00:48]} Qe3+ {[%emt 0:00:14]} 38. Kb2 {[%emt 0:00:29]} Qxh3 {[%emt 0:00:16]} 39. Nd5+ {[%emt 0:00:05]} Ke6 {[%emt 0:00:13]} 40. Re8+ {[%emt 0:00:50]} Kd7 {[%emt 0:00:04]} 41. Rb8 {[%emt 0:00:27]} Nf6 {[%emt 0:01:03]} 42. Nab6+ {[%emt 0:00:36]} Ke6 {[%emt 0:00:56]} 0-1

[Event "7th Sharjah Masters 2024"]
[Site "Sharjah"]
[Date "2024.05.20"]
[Round "7.39"]
[White "Nikitenko, Mihail"]
[Black "Peralta, Fernando"]
[Result "1/2-1/2"]
[ECO "E06"]
[WhiteElo "2529"]
[BlackElo "2575"]
[Annotator "RC"]
[PlyCount "115"]
[EventDate "2024.05.13"]
[EventType "swiss"]
[EventCountry "UAE"]
[SourceTitle "playchess.com"]
[Source "ChessBase"]
[SourceQuality "1"]
[TimeControl "5400+30"]

1. d4 {[%emt 0:00:03]} Nf6 {[%emt 0:00:17]} 2. c4 {[%emt 0:00:08]} e6 {[%emt 0:00:09]} 3. g3 {[%emt 0:00:04]} d5 {[%emt 0:00:48]} 4. Nf3 {[%emt 0:00:06]} Be7 {[%emt 0:00:11]} 5. Bg2 {[%emt 0:00:05]} O-O {[%emt 0:00:05]} 6. O-O {[%emt 0:00:06]} Nc6 {[%emt 0:00:04]} 7. b3 {[%emt 0:03:43]} b6 {[%emt 0:00:37]} 8. Bb2 {[%emt 0:00:42]} Bb7 {[%emt 0:00:48]} 9. Nbd2 {[%emt 0:01:00]} a5 {[%emt 0:03:26]} 10. a3 {[%emt 0:02:35]} Ne4 {[%emt 0:00:38]} 11. e3 {[%emt 0:02:40]} f5 {[%emt 0:01:58]} 12. Rc1 {[%emt 0:01:29]} Bd6 {[%emt 0:02:10]} 13. Rc2 {[%emt 0:01:12]} Nb8 {[%emt 0:12:11]} 14. Ne1 {[%emt 0:02:10]} Nd7 {[%emt 0:04:27]} 15. Nd3 {[%emt 0:00:11]} Qe7 {[%emt 0:00:51]} 16. a4 {[%emt 0:04:10]} c5 {[%emt 0:02:26]} 17. cxd5 {[%emt 0:03:24]} exd5 {[%emt 0:00:25]} 18. Nf4 {[%emt 0:00:32]} Rad8 {[%emt 0:12:25]} 19. Nf3 {[%emt 0:08:41]} Ndf6 {[%emt 0:15:57]} 20. Re1 {[%emt 0:04:55]} Bb8 {[%emt 0:02:29]} 21. Ba3 {[%emt 0:01:57]} Bd6 {[%emt 0:02:44]} 22. Bb2 {[%emt 0:02:15]} Bb8 {[%emt 0:00:49]} 23. Nd3 {[%emt 0:00:31]} Nd7 {[%emt 0:01:46]} 24. Qa1 {[%emt 0:02:29]} Rc8 {[%emt 0:01:34]} 25. Rd1 {[%emt 0:02:32]} Rfd8 {[%emt 0:00:47]} 26. Nf4 {[%emt 0:04:19]} Nf8 {[%emt 0:00:47]} 27. Ne1 {[%emt 0:11:58]} Qf7 {[%emt 0:03:52]} 28. Ned3 {[%emt 0:00:58]} c4 {[%emt 0:01:54]} 29. Ne5 {[%emt 0:01:18]} Bxe5 {[%emt 0:00:25]} 30. dxe5 {[%emt 0:00:03]} cxb3 {[%emt 0:07:08]} 31. Rxc8 {[%emt 0:00:11]} Rxc8 {[%emt 0:00:10]} 32. e6 {[%emt 0:06:10]} Nxe6 {[%emt 0:01:29]} 33. Nxe6 {[%emt 0:00:18]} Qxe6 {[%emt 0:00:04]} 34. Bxg7 {[%emt 0:00:04]} Rc2 {[%emt 0:02:45]} 35. Bd4 {[%emt 0:00:18]} Nxf2 {[%emt 0:02:56]} 36. Rb1 {[%emt 0:00:43]} Nd3 {[%emt 0:03:36]} 37. Rf1 {[%emt 0:02:42]} Rc1 {[%emt 0:06:48]} 38. Qa3 {[%emt 0:04:54]} b2 {[%emt 0:00:52]} 39. Qxd3 {[%emt 0:00:05]} b1=Q {[%emt 0:02:37]} 40. Qxb1 {[%emt 0:00:04]} Rxb1 {[%emt 0:00:03]} 41. Rxb1 {[%emt 0:00:03]} Qc6 {[%emt 0:03:11]} 42. Rxb6 {[%emt 0:03:42]} Qc1+ {[%emt 0:00:14]} 43. Bf1 {[%emt 0:00:15]} Bc6 {[%emt 0:00:24]} 44. Ra6 {[%emt 0:00:32]} Bxa4 {[%emt 0:00:36]} 45. Rxa5 {[%emt 0:00:04]} Bc2 {[%emt 0:01:56]} 46. Ra1 {[%emt 0:00:05]} Qd2 {[%emt 0:00:14]} 47. Ra2 {[%emt 0:00:10]} Qd1 {[%emt 0:00:34]} 48. Kf2 {[%emt 0:01:24]} Bd3 {[%emt 0:01:18]} 49. Bg2 {[%emt 0:04:39]} Be4 {[%emt 0:00:15]} 50. Bf1 {[%emt 0:01:10]} Bd3 {[%emt 0:00:04]} 51. Bg2 {[%emt 0:01:05]} Be4 {[%emt 0:00:04]} 52. Ra8+ {[%emt 0:00:04]} Kf7 {[%emt 0:00:05]} 53. Ra7+ {[%emt 0:00:04]} Ke6 {[%emt 0:00:58]} 54. Ra6+ {[%emt 0:01:08]} Ke7 {[%emt 0:00:23]} 55. Bxe4 {[%emt 0:02:41]} Qd2+ {[%emt 0:00:43]} 56. Kf3 {[%emt 0:01:28]} Qd1+ {[%emt 0:00:27]} 57. Kf2 {[%emt 0:00:47]} Qd2+ {[%emt 0:00:04]} 58. Kf3 {[%emt 0:00:03]} 1/2-1/2